bitfinex/quotes_BTCUSD_20251120
["timestamp","ask_amount","ask_price","bid_price","bid_amount"]
[1763665858858,0.00025419,86498.0,86497.0,0.13335979]
[1763665859276,0.00025419,86498.0,86497.0,0.13928979]
[1763665859925,0.00025419,86498.0,86497.0,0.13941536]
[1763665860134,0.00025419,86498.0,86497.0,0.14041536]
[1763665860559,0.00025419,86498.0,86497.0,0.13941536]
[1763665860937,0.00025419,86498.0,86497.0,0.12775265]
[1763665861140,0.00025419,86498.0,86497.0,0.12735265]
[1763665861343,0.00025419,86498.0,86497.0,0.12935265]
[1763665862346,0.00025419,86498.0,86497.0,0.14422596]
[1763665862564,0.00025419,86498.0,86497.0,0.14622596]
[1763665862764,0.00167232,86548.0,86500.0,0.00999999]
[1763665862999,0.01814153,86528.0,86527.0,0.11476708]
[1763665863299,0.0124,86571.0,86527.0,0.14536708]
[1763665863514,0.79030742,86560.0,86528.0,0.01551371]
[1763665863715,0.02120981,86570.0,86526.0,0.00977]
[1763665863716,0.01813823,86531.0,86526.0,0.00977]
[1763665863997,0.22392,86570.0,86526.0,0.00977]
[1763665863998,0.001,86548.0,86526.0,0.00977]
[1763665864155,0.01813975,86533.0,86526.0,0.00977]
[1763665864360,0.00141833,86548.0,86526.0,0.00977]
[1763665864361,0.02533833,86548.0,86526.0,0.00977]
[1763665864741,0.01814006,86532.0,86526.0,0.00977]
[1763665864943,0.02533833,86548.0,86527.0,0.13006708]
[1763665864944,0.00141833,86548.0,86527.0,0.13006708]
[1763665865121,0.00141833,86548.0,86547.0,0.0153]
[1763665865384,0.00041833,86548.0,86547.0,0.0153]
[1763665865530,0.01813835,86553.0,86547.0,0.04360671]
[1763665865731,0.0002,86590.0,86552.0,0.01488]
[1763665865943,0.01813461,86565.0,86560.0,0.79030742]
[1763665866172,0.01813461,86565.0,86561.0,0.11476708]
[1763665866328,0.79050742,86590.0,86553.0,0.01999]
[1763665866329,0.81442742,86590.0,86553.0,0.01999]
[1763665866526,0.0181341,86564.0,86553.0,0.00511]
[1763665866730,0.0453651,86589.0,86553.0,0.00511]
[1763665866731,0.00026236,86579.0,86553.0,0.00511]
[1763665867127,0.00026236,86588.0,86563.0,0.01488]
[1763665867364,0.01813451,86573.0,86563.0,0.01488]
[1763665867587,0.01813451,86573.0,86564.0,0.01296471]
[1763665867763,0.0002,86590.0,86572.0,0.01488]
[1763665868008,0.01813328,86574.0,86572.0,0.01488]
[1763665868198,0.0002,86590.0,86572.0,0.01488]
[1763665868407,0.01813271,86574.0,86573.0,0.01488]
[1763665868913,0.00241253,86574.0,86573.0,0.02976]
[1763665869345,0.0002,86590.0,86575.0,0.01488]
[1763665869548,0.0002,86590.0,86573.0,0.01488]
[1763665869549,0.0001255,86590.0,86589.0,0.12964708]
[1763665869682,0.0002,86620.0,86589.0,0.14261179]
[1763665869881,0.00032548,86620.0,86590.0,0.01455]
[1763665870094,0.00032548,86620.0,86619.0,0.02399]
[1763665870535,0.00032548,86620.0,86619.0,0.03854]
[1763665871084,0.00428548,86620.0,86619.0,0.02399]
[1763665871202,0.00396,86620.0,86619.0,0.02399]
[1763665872121,0.00396,86620.0,86619.0,0.02499]
[1763665872941,0.00396,86620.0,86619.0,0.01044]
[1763665873969,0.00396,86620.0,86619.0,0.01144]
[1763665874531,0.00396,86620.0,86619.0,0.002]
[1763665875345,0.00396,86620.0,86609.0,0.00944]
[1763665875755,0.0011418,86610.0,86609.0,0.00944]
[1763665875962,0.0011418,86610.0,86597.0,0.00944]
[1763665876239,0.0011418,86610.0,86588.0,0.00944]
[1763665876240,0.00076131,86598.0,86588.0,0.00944]
[1763665876472,0.79030742,86610.0,86588.0,0.00944]
[1763665876473,0.00047587,86589.0,86588.0,0.00944]
[1763665876820,0.00443587,86589.0,86588.0,0.00944]
[1763665876940,0.00443587,86589.0,86558.0,0.11476708]
[1763665876941,0.00443587,86589.0,86558.0,0.12931708]
[1763665877143,0.00443587,86589.0,86548.0,0.01455]
[1763665877144,0.02392,86588.0,86548.0,0.01455]
[1763665877494,0.02392,86588.0,86540.0,0.79030742]
[1763665877495,0.00396,86589.0,86554.0,0.01455]
[1763665877641,0.00396,86589.0,86560.0,0.79030742]
[1763665877841,0.00396,86589.0,86561.0,0.01386305]
[1763665878127,0.00396,86589.0,86562.0,0.08041705]
[1763665878319,0.00396,86589.0,86563.0,0.02841273]
[1763665878522,0.00396,86589.0,86571.0,0.11476708]
[1763665878814,0.00396,86589.0,86568.0,0.01455]
[1763665879023,0.00396,86589.0,86574.0,0.11476708]
[1763665879180,0.00396,86589.0,86575.0,0.01147671]
[1763665879585,0.00396,86589.0,86568.0,0.01455]
[1763665880193,0.00396,86589.0,86561.0,0.11476708]
[1763665880194,0.00396,86589.0,86574.0,0.001]
[1763665880402,0.00396,86589.0,86575.0,0.001]
[1763665881408,0.01627,86576.0,86575.0,0.001]
[1763665881591,0.01627,86576.0,86554.0,0.00012548]
[1763665881795,0.01627,86576.0,86568.0,0.001]
[1763665881995,0.01627,86576.0,86568.0,0.002]
[1763665882396,0.02392,86578.0,86568.0,0.002]
[1763665882397,0.0124,86578.0,86568.0,0.001]
[1763665882640,0.00025382,86582.0,86558.0,0.01455]
[1763665882839,0.00025382,86582.0,86563.0,0.11476708]
[1763665883012,0.00025382,86582.0,86558.0,0.01455]
[1763665883013,0.00025382,86582.0,86564.0,0.01431805]
[1763665883194,0.00025382,86582.0,86560.0,0.01455]
[1763665883401,0.00025382,86582.0,86562.0,0.11476708]
[1763665883604,0.00025382,86582.0,86563.0,0.01386273]
[1763665883809,0.00025382,86582.0,86563.0,0.02841273]
[1763665884020,0.79030742,86580.0,86554.0,0.00012548]
[1763665884219,0.02392,86579.0,86554.0,0.00012548]
[1763665884519,0.00025382,86582.0,86554.0,0.00012548]
[1763665884955,0.00025382,86582.0,86555.0,0.12931708]
[1763665885159,0.00025382,86582.0,86568.0,0.11476708]
[1763665885502,0.00025382,86582.0,86556.0,0.01455]
[1763665885631,0.00025382,86582.0,86557.0,0.01345526]
[1763665885815,0.00025382,86582.0,86558.0,0.11476708]
[1763665886223,0.00025382,86582.0,86559.0,0.11476708]
[1763665886670,0.00025382,86582.0,86554.0,0.00012548]
[1763665886877,0.00025382,86582.0,86558.0,0.11476708]
[1763665887101,0.00025382,86582.0,86559.0,0.02725004]
[1763665887414,0.00025382,86582.0,86559.0,0.04181004]
[1763665887551,0.00025382,86582.0,86560.0,0.80486742]
[1763665887749,0.00025382,86582.0,86561.0,0.01386305]
[1763665887956,0.00025382,86582.0,86571.0,0.11476708]
[1763665888164,0.00025382,86582.0,86572.0,0.01147671]
[1763665889362,0.00025382,86582.0,86571.0,0.01456]
[1763665889595,0.00025382,86582.0,86559.0,0.02794667]
[1763665889796,0.00025382,86582.0,86571.0,0.11476708]
[1763665890375,0.00025382,86582.0,86560.0,0.01456]
[1763665891332,0.00025382,86582.0,86560.0,0.80486742]
[1763665891550,0.00396,86581.0,86571.0,0.11476708]
[1763665892126,0.00396,86581.0,86572.0,0.0244]
[1763665892427,0.00396,86581.0,86580.0,0.01595]
[1763665892939,0.03056361,86629.0,86580.0,0.03888]
[1763665893088,0.02125111,86615.0,86584.0,0.11476708]
[1763665893305,0.02125111,86614.0,86585.0,0.09664995]
[1763665893509,0.02125111,86613.0,86585.0,0.09664995]
[1763665893707,0.00396,86615.0,86585.0,0.09664995]
[1763665893708,0.02125111,86612.0,86590.0,0.4696524]
[1763665893910,0.00396,86615.0,86591.0,0.05664278]
[1763665894118,0.00396,86615.0,86614.0,0.01139]
[1763665894455,0.00396,86615.0,86592.0,0.02293]
[1763665894866,0.00396,86615.0,86614.0,0.01215]
[1763665895240,0.00396,86615.0,86598.0,0.01215]
[1763665895445,0.02127498,86614.0,86598.0,0.00042593]
[1763665895702,0.02127498,86613.0,86598.0,0.00042593]
[1763665895827,0.4696524,86610.0,86598.0,0.00042593]
[1763665896033,0.0165,86599.0,86598.0,0.00042593]
[1763665896229,0.06062498,86599.0,86598.0,0.00042593]
[1763665896667,0.03777498,86599.0,86598.0,0.00042593]
[1763665896933,0.06062,86599.0,86598.0,0.00042593]
[1763665897150,0.02127,86599.0,86598.0,0.00042593]
[1763665897354,0.00396,86599.0,86598.0,0.00042593]
[1763665897756,0.0252394,86599.0,86598.0,0.00042593]
[1763665898325,0.00396,86599.0,86598.0,0.00042593]
[1763665899100,0.04331,86599.0,86598.0,0.00042593]
[1763665899257,0.06459871,86599.0,86598.0,0.00042593]
[1763665900260,0.02524871,86599.0,86574.0,0.11476708]
[1763665900611,0.02128871,86598.0,86575.0,0.0736889]
[1763665901226,0.00396,86599.0,86580.0,0.4696524]
[1763665901434,0.00396,86599.0,86581.0,0.01385985]
[1763665901653,0.04416672,86598.0,86574.0,0.00042786]
[1763665901791,0.02131672,86597.0,86574.0,0.00042786]
[1763665902008,0.02131672,86596.0,86574.0,0.00042786]
[1763665902211,0.01221,86575.0,86574.0,0.00042786]
[1763665902414,0.00396,86575.0,86574.0,0.00042786]
[1763665902625,0.00396,86575.0,86574.0,0.04058786]
[1763665902826,0.00396,86575.0,86574.0,0.00042786]
[1763665904298,0.00396,86575.0,86574.0,0.01698786]
[1763665904589,0.00396,86575.0,86574.0,0.00042786]
[1763665904933,0.00396,86575.0,86574.0,0.01698786]
[1763665905132,0.00396,86575.0,86574.0,0.01798786]
[1763665905957,0.00396,86575.0,86574.0,0.04058786]
[1763665906166,0.00396,86575.0,86574.0,0.04158786]
[1763665906362,0.00396,86575.0,86574.0,0.04258786]
[1763665906574,0.00396,86575.0,86574.0,0.01898786]
[1763665906781,0.00396,86575.0,86574.0,0.04158786]
[1763665907195,0.00396,86575.0,86574.0,0.04058786]
[1763665907651,0.00396,86575.0,86574.0,0.06399013]
[1763665908260,0.00396,86575.0,86574.0,0.0820924]
[1763665908490,0.00396,86575.0,86574.0,0.04258786]
[1763665908703,0.00396,86575.0,86574.0,0.04158786]
[1763665908853,0.00396,86575.0,86574.0,0.05544883]
[1763665909052,0.00396,86575.0,86574.0,0.05644883]
[1763665909256,0.00178203,86575.0,86574.0,0.05644883]
[1763665909475,0.00025378,86590.0,86574.0,0.06525261]
[1763665909691,0.00296,86586.0,86585.0,0.01656]
[1763665909889,0.0124,86639.0,86590.0,0.00999999]
[1763665910088,0.0004,86640.0,86620.0,0.4696524]
[1763665910089,0.02138481,86638.0,86620.0,0.4696524]
[1763665910325,0.02138481,86637.0,86629.0,0.4696524]
[1763665910507,0.02138481,86637.0,86621.0,0.04696524]
[1763665910508,0.02138481,86636.0,86630.0,0.00982]
[1763665910706,0.02138481,86636.0,86614.0,0.03115284]
[1763665910707,0.00126826,86630.0,86622.0,0.00982]
[1763665910921,0.00126826,86630.0,86603.0,0.04153713]
[1763665910922,0.02871,86611.0,86603.0,0.03115284]
[1763665911112,0.0165,86604.0,86585.0,0.03415284]
[1763665911429,0.0213484,86603.0,86585.0,0.00342786]
[1763665911605,0.0213484,86602.0,86585.0,0.00042786]
[1763665911937,0.0165,86604.0,86585.0,0.00042786]
[1763665911938,0.0213484,86601.0,86585.0,0.00042786]
[1763665912147,0.0213484,86600.0,86585.0,0.00042786]
[1763665912326,0.0213484,86599.0,86586.0,0.06664803]
[1763665912525,0.0213484,86598.0,86585.0,0.00042786]
[1763665912731,0.0213484,86597.0,86585.0,0.00042786]
[1763665912931,0.0213484,86596.0,86585.0,0.00042786]
[1763665913112,0.01221,86611.0,86586.0,0.58441948]
[1763665913295,0.02285,86621.0,86595.0,0.01064]
[1763665913296,0.02135245,86610.0,86595.0,0.01064]
[1763665913496,0.02135245,86609.0,86595.0,0.01064]
[1763665913699,0.02135245,86608.0,86595.0,0.01064]
[1763665913903,0.02135245,86607.0,86590.0,0.4696524]
[1763665914113,0.02285,86624.0,86585.0,0.00042786]
[1763665914318,0.4696524,86620.0,86585.0,0.00042786]
[1763665914521,0.02135671,86619.0,86585.0,0.00042786]
[1763665914741,0.04420671,86619.0,86585.0,0.00042786]
[1763665914954,0.4696524,86610.0,86585.0,0.00042786]
[1763665915157,0.04420671,86609.0,86585.0,0.00042786]
[1763665915466,0.02135671,86608.0,86590.0,0.4696524]
[1763665915710,0.04277361,86625.0,86598.0,0.4696524]
[1763665915711,0.02135671,86607.0,86598.0,0.4696524]
[1763665915927,0.01221,86625.0,86599.0,0.04696524]
[1763665916055,0.001,86619.0,86599.0,0.04696524]
[1763665916258,0.00044402,86604.0,86600.0,0.12540708]
[1763665916456,0.001,86619.0,86603.0,0.01064]
[1763665916701,0.02138125,86618.0,86604.0,0.03135761]
[1763665917024,0.02138125,86617.0,86604.0,0.03135761]
[1763665917227,0.001,86619.0,86604.0,0.04199761]
[1763665917447,0.00047573,86605.0,86604.0,0.04199761]
[1763665917620,0.00047573,86605.0,86604.0,0.01064]
[1763665917823,0.00047573,86605.0,86590.0,0.4696524]
[1763665918031,0.02285,86628.0,86604.0,0.01064]
[1763665918200,0.02137862,86627.0,86604.0,0.01064]
[1763665918407,0.02137862,86626.0,86604.0,0.01064]
[1763665918587,0.02137862,86625.0,86605.0,0.06056995]
[1763665918793,0.0004,86640.0,86615.0,0.4696524]
[1763665918996,0.0004,86640.0,86605.0,0.07120995]
[1763665918997,0.0213761,86639.0,86606.0,0.01064]
[1763665919201,0.0004,86640.0,86599.0,0.11476708]
[1763665919202,0.0442261,86638.0,86599.0,0.11476708]
[1763665919405,0.0004,86640.0,86600.0,0.4696524]
[1763665919406,0.0442261,86637.0,86600.0,0.4696524]
[1763665919762,0.06402783,86636.0,86590.0,0.4696524]
[1763665919967,0.0213761,86635.0,86600.0,0.4696524]
[1763665920125,0.0213761,86634.0,86602.0,0.11476708]
[1763665920333,0.0213761,86633.0,86590.0,0.47008026]
[1763665920518,0.0213761,86632.0,86600.0,0.4696524]
[1763665920714,0.0213761,86631.0,86591.0,0.05848473]
[1763665921031,0.6700524,86640.0,86591.0,0.05848473]
[1763665921032,0.0004,86640.0,86621.0,0.4696524]
[1763665921233,0.02136735,86639.0,86621.0,0.4696524]
[1763665921438,0.0004,86640.0,86622.0,0.04696524]
[1763665921651,0.001,86638.0,86622.0,0.04696524]
[1763665921851,0.001,86638.0,86612.0,0.11476708]
[1763665922049,0.001,86638.0,86620.0,0.4696524]
[1763665922405,0.2002,86670.0,86637.0,0.11476708]
[1763665922516,0.0002,86670.0,86660.0,0.4696524]
[1763665923429,0.0002,86670.0,86640.0,0.03101729]
[1763665923556,0.0012,86670.0,86650.0,0.4696524]
[1763665923755,0.0245,86669.0,86650.0,0.4696524]
[1763665923977,0.0245,86669.0,86641.0,0.01457844]
[1763665924197,0.00193362,86651.0,86650.0,0.4696524]
[1763665924401,0.00193362,86651.0,86641.0,0.01457844]
[1763665924552,0.01126,86663.0,86642.0,0.08178206]
[1763665924758,0.01126,86663.0,86650.0,0.4696524]
[1763665925376,0.0002,86670.0,86651.0,0.11476708]
[1763665925621,0.0002,86670.0,86659.0,0.4696524]
[1763665925841,0.0002,86670.0,86650.0,0.4696524]
[1763665926027,0.0245,86669.0,86650.0,0.4696524]
[1763665926187,0.0002,86670.0,86650.0,0.4696524]
[1763665926188,0.0002,86670.0,86659.0,0.4696524]
[1763665927578,0.01537,86660.0,86650.0,0.001]
[1763665927718,0.01537,86660.0,86640.0,0.4696524]
[1763665927918,0.01537,86660.0,86640.0,0.49829369]
[1763665928127,0.01537,86660.0,86650.0,0.4696524]
[1763665928536,0.2004,86680.0,86650.0,0.4696524]
[1763665928537,0.2004,86680.0,86659.0,0.11476708]
[1763665928737,0.0004,86700.0,86670.0,0.95930478]
[1763665928940,0.0002,86710.0,86690.0,0.94930479]
[1763665929158,0.0004,86720.0,86700.0,0.9393048]
[1763665929453,0.0004,86720.0,86710.0,0.4696524]
[1763665929653,0.0004,86720.0,86711.0,0.02802751]
[1763665929835,0.00081838,86720.0,86718.0,0.11476708]
[1763665930036,0.00081838,86720.0,86711.0,0.02802751]
[1763665930037,0.00081838,86720.0,86711.0,0.14279459]
[1763665930418,0.00386453,86712.0,86711.0,0.14279459]
[1763665930640,0.00386453,86712.0,86711.0,0.11476708]
[1763665930887,0.00386453,86712.0,86700.0,0.9393048]
[1763665930888,0.00386453,86712.0,86700.0,0.9403048]
[1763665931048,0.00081838,86720.0,86700.0,0.001]
[1763665931249,0.00081838,86720.0,86691.0,0.11476708]
[1763665931452,0.0245,86719.0,86700.0,0.4706524]
[1763665931883,0.0245,86719.0,86700.0,0.04706524]
[1763665932122,0.00081838,86720.0,86691.0,0.11476708]
[1763665932463,0.00081838,86720.0,86711.0,0.001]
[1763665932684,0.0245,86719.0,86711.0,0.001]
[1763665933159,0.0245,86719.0,86660.0,0.01147671]
[1763665933160,0.4696524,86700.0,86660.0,0.01147671]
[1763665933344,0.4696524,86700.0,86660.0,0.48112911]
[1763665933546,0.01126,86699.0,86673.0,0.11476708]
[1763665933786,0.01126,86699.0,86670.0,0.4696524]
[1763665933962,0.01126,86699.0,86671.0,0.04696524]
[1763665934162,0.01126,86699.0,86661.0,0.0006]
[1763665934800,0.0245,86698.0,86659.0,0.11476708]
[1763665934999,0.0245,86698.0,86660.0,0.4696524]
[1763665935883,0.0245,86698.0,86661.0,0.12861413]
[1763665936074,0.0245,86698.0,86662.0,0.01286141]
[1763665936273,0.0245,86698.0,86663.0,0.01384673]
[1763665936475,0.0255,86698.0,86675.0,0.11476708]
[1763665936708,0.01126,86699.0,86680.0,0.4696524]
[1763665936943,0.00081838,86720.0,86689.0,0.58441948]
[1763665937114,0.001,86698.0,86690.0,0.05844195]
[1763665937313,0.00081838,86720.0,86690.0,0.05844195]
[1763665937672,0.00081838,86720.0,86704.0,0.11476708]
[1763665937999,0.00081838,86720.0,86689.0,0.11476708]
[1763665938161,0.00081838,86720.0,86675.0,0.11476708]
[1763665938162,0.0245,86719.0,86675.0,0.11476708]
[1763665938615,0.0245,86719.0,86680.0,0.4696524]
[1763665938816,0.001,86698.0,86675.0,0.11476708]
[1763665939502,0.001,86698.0,86680.0,0.4696524]
[1763665939734,0.01126,86706.0,86681.0,0.0272736]
[1763665940162,0.01126,86706.0,86680.0,0.4696524]
[1763665940836,0.01049603,86706.0,86680.0,0.4696524]
[1763665941698,0.01049603,86706.0,86675.0,0.11476708]
[1763665941911,0.01049603,86706.0,86670.0,0.5]
[1763665941912,0.0245,86705.0,86670.0,0.5]
[1763665942122,0.01049603,86706.0,86680.0,0.4696524]
[1763665942334,0.01049603,86706.0,86681.0,0.01384386]
[1763665942742,0.0245,86714.0,86680.0,0.4696524]
[1763665942743,0.00291524,86682.0,86680.0,0.4696524]
[1763665942975,0.001,86706.0,86676.0,0.08176708]
[1763665943193,0.01126,86719.0,86694.0,0.11476708]
[1763665943412,0.0004,86720.0,86713.0,0.11476708]
[1763665943586,0.0004,86720.0,86700.0,0.4696524]
[1763665943851,0.0004,86720.0,86695.0,0.05920195]
[1763665944069,0.00081838,86720.0,86695.0,0.05920195]
[1763665944284,0.00081838,86720.0,86690.0,0.4696524]
[1763665944508,0.00081838,86720.0,86684.0,0.00076]
[1763665944509,0.00081838,86720.0,86691.0,0.11476708]
[1763665944754,0.4696524,86710.0,86675.0,0.00076]
[1763665944984,0.4696524,86710.0,86680.0,0.001]
[1763665945192,0.0245,86709.0,86680.0,0.001]
[1763665945367,0.0245,86709.0,86670.0,0.5]
[1763665945368,0.4696524,86690.0,86670.0,0.5]
[1763665945621,0.01126,86671.0,86670.0,0.5]
[1763665945852,0.01126,86682.0,86670.0,0.5]
[1763665946549,0.01167812,86682.0,86670.0,0.5]
[1763665947847,0.4696524,86680.0,86670.0,0.5]
[1763665948047,0.001,86671.0,86670.0,0.5]
[1763665948177,0.00141812,86682.0,86670.0,0.5]
[1763665948379,0.00141812,86682.0,86672.0,0.11476708]
[1763665948585,0.00141812,86682.0,86670.0,0.5]
[1763665948783,0.00263033,86673.0,86670.0,0.5]
[1763665949003,0.00041812,86682.0,86670.0,0.5]
[1763665949206,0.00256701,86671.0,86670.0,0.467]
[1763665950970,0.02603701,86671.0,86670.0,0.467]
[1763665951176,0.04734182,86671.0,86670.0,0.467]
[1763665951561,0.04734182,86671.0,86670.0,0.442]
[1763665951734,0.04734182,86671.0,86670.0,0.443]
[1763665951879,0.04734182,86671.0,86670.0,0.442]
[1763665952085,3.04734182,86671.0,86670.0,0.442]
[1763665952281,3.04734182,86671.0,86670.0,0.21707042]
[1763665953271,3.04735537,86671.0,86670.0,0.21707042]
[1763665953482,3.04733987,86671.0,86670.0,0.21707042]
[1763665954145,3.07790348,86671.0,86670.0,0.21707042]
[1763665954353,0.07901533,86671.0,86670.0,0.21707042]
[1763665954553,3.04833987,86671.0,86670.0,0.21707042]
[1763665954759,3.04933987,86671.0,86670.0,0.21707042]
[1763665954908,3.04733987,86671.0,86670.0,0.21707042]
[1763665955125,3.04933987,86671.0,86670.0,0.21707042]
[1763665955326,3.05233987,86671.0,86670.0,0.21707042]
[1763665955650,3.04733987,86671.0,86670.0,0.21707042]
[1763665956241,3.05033987,86671.0,86670.0,0.21707042]
[1763665956475,3.05033987,86671.0,86670.0,0.09016826]
[1763665956476,3.06887987,86671.0,86670.0,0.09016826]
[1763665956676,3.0,86629.0,86584.0,0.01142]
[1763665956883,0.21999998,86630.0,86580.0,0.0004]
[1763665956884,0.2,86620.0,86580.0,0.0004]
[1763665957085,0.02130286,86619.0,86580.0,0.0004]
[1763665957297,0.2,86610.0,86580.0,0.0004]
[1763665957509,0.05511286,86609.0,86580.0,0.0004]
[1763665957717,0.02336,86607.0,86580.0,0.0004]
[1763665957931,0.02336,86607.0,86580.0,0.00052811]
[1763665958927,0.001,86607.0,86581.0,0.13872708]
[1763665959172,0.002,86607.0,86582.0,0.02778521]
[1763665959376,0.002,86607.0,86582.0,0.05174521]
[1763665959890,0.002,86607.0,86606.0,0.02675]
[1763665960091,0.001,86607.0,86606.0,0.01142]
[1763665960370,0.001,86607.0,86599.0,0.01142]
[1763665960573,0.002,86607.0,86599.0,0.01142]
[1763665960973,0.001,86607.0,86599.0,0.01142]
[1763665961150,0.00884,86617.0,86599.0,0.01154811]
[1763665961959,0.01207,86639.0,86616.0,0.01533]
[1763665962359,0.01207,86639.0,86600.0,0.13872708]
[1763665962360,0.02336,86638.0,86601.0,0.01385665]
[1763665962793,0.0003806,86602.0,86601.0,0.01385665]
[1763665963008,0.0003806,86602.0,86599.0,0.01154811]
[1763665963215,0.01207,86616.0,86599.0,0.01154811]
[1763665963379,0.01207,86616.0,86599.0,0.00012811]
[1763665963795,0.02336,86624.0,86599.0,0.00012811]
[1763665963796,0.001,86617.0,86599.0,0.00012811]
[1763665963994,0.01812348,86612.0,86599.0,0.00012811]
[1763665964198,0.01812348,86612.0,86595.0,0.01408811]
[1763665964461,0.01812348,86612.0,86611.0,0.01533]
[1763665964667,0.01207,86639.0,86611.0,0.01533]
[1763665964816,0.001,86617.0,86595.0,0.00012784]
[1763665965015,0.01083,86616.0,86595.0,0.00012784]
[1763665965217,0.02336,86625.0,86596.0,0.11476708]
[1763665965384,0.02336,86625.0,86596.0,0.12739857]
[1763665966205,0.02336,86625.0,86595.0,0.00112784]
[1763665966623,0.2,86620.0,86595.0,0.00112784]
[1763665966832,0.2,86620.0,86595.0,0.00012784]
[1763665967166,0.02336,86624.0,86595.0,0.00012784]
[1763665967497,0.00999999,86650.0,86609.0,0.11476708]
[1763665967498,0.01083,86632.0,86609.0,0.11476708]
[1763665967627,0.02336,86644.0,86610.0,0.03543671]
[1763665967628,0.01207,86642.0,86610.0,0.03543671]
[1763665967827,0.01207,86664.0,86610.0,0.04929192]
[1763665967828,0.0181219,86627.0,86610.0,0.04929192]
[1763665968070,0.0181219,86627.0,86611.0,0.02396]
[1763665968368,0.001,86620.0,86611.0,0.02396]
[1763665968596,0.0181219,86627.0,86612.0,0.11476708]
[1763665968971,0.0181219,86627.0,86611.0,0.02396]
[1763665968972,0.00072936,86613.0,86611.0,0.02396]
[1763665969180,0.0181219,86627.0,86611.0,0.02396]
[1763665969381,0.0181219,86627.0,86613.0,0.11476708]
[1763665969783,0.0181219,86627.0,86611.0,0.02396]
[1763665970191,0.0181219,86627.0,86612.0,0.11476708]
[1763665971506,0.0181219,86627.0,86611.0,0.02396]
[1763665971841,0.0181219,86627.0,86612.0,0.11476708]
[1763665972058,0.0181219,86627.0,86626.0,0.01142]
[1763665973126,0.0221219,86627.0,86626.0,0.01142]
[1763665973331,0.0221219,86627.0,86626.0,0.01154784]
[1763665973962,0.0221219,86627.0,86626.0,0.02687784]
[1763665974174,0.0221219,86627.0,86626.0,0.05083784]
[1763665975204,0.0221219,86627.0,86626.0,0.05183784]
[1763665975205,0.004,86627.0,86626.0,0.05183784]
[1763665975620,0.00517315,86627.0,86626.0,0.05183784]
[1763665975771,0.00517315,86627.0,86626.0,0.05083784]
[1763665977198,0.00517315,86627.0,86626.0,0.05183784]
[1763665978226,0.02336,86672.0,86626.0,0.05183784]
[1763665978471,0.02531988,86671.0,86641.0,0.11476708]
[1763665978673,0.02131988,86670.0,86642.0,0.09007675]
[1763665978815,0.02131988,86670.0,86642.0,0.11403675]
[1763665979213,0.02336,86669.0,86634.0,0.02396]
[1763665979416,0.02131988,86668.0,86634.0,0.02396]
[1763665979866,0.02336,86667.0,86634.0,0.02396]
[1763665980028,0.02131988,86666.0,86634.0,0.02396]
[1763665980431,0.02131988,86666.0,86626.0,0.01154784]
[1763665980432,0.7860004,86660.0,86626.0,0.01154784]
[1763665980652,0.02131988,86659.0,86626.0,0.01154784]
[1763665980852,0.02131988,86658.0,86626.0,0.01154784]
[1763665981034,0.02131988,86657.0,86626.0,0.01154784]
[1763665981233,0.02131988,86656.0,86626.0,0.01154784]
[1763665981436,0.01811988,86650.0,86626.0,0.05584776]
[1763665981639,0.02131988,86649.0,86626.0,0.00012784]
[1763665981838,0.04467988,86649.0,86626.0,0.00012784]
[1763665982041,0.02131988,86648.0,86626.0,0.00012784]
[1763665982275,0.02131988,86647.0,86626.0,0.00012784]
[1763665982472,0.04893988,86646.0,86626.0,0.00012784]
[1763665982767,0.02131988,86645.0,86626.0,0.00012784]
[1763665983072,0.02131988,86644.0,86626.0,0.00012784]
[1763665983273,0.02131988,86643.0,86626.0,0.00012784]
[1763665983578,0.02131988,86642.0,86626.0,0.00012784]
[1763665983751,0.02131988,86641.0,86626.0,0.00012784]
[1763665983962,0.02362,86644.0,86626.0,0.00012784]
[1763665983963,0.02131988,86640.0,86626.0,0.00012784]
[1763665984167,0.02362,86644.0,86626.0,0.00012784]
[1763665984168,0.02131988,86639.0,86626.0,0.00012784]
[1763665984333,0.004,86646.0,86627.0,0.01142]
[1763665984334,0.02131988,86638.0,86627.0,0.01142]
[1763665984534,0.02131988,86637.0,86628.0,0.91461981]
[1763665984741,0.01811988,86650.0,86645.0,0.01529]
[1763665984958,0.01811988,86650.0,86649.0,0.01529]
[1763665985167,0.02211988,86650.0,86649.0,0.01529]
[1763665985372,0.02211988,86650.0,86649.0,0.03943]
[1763665985778,0.02211988,86650.0,86649.0,0.01643]
[1763665986010,0.02211988,86650.0,86649.0,0.03172]
[1763665986429,0.02211988,86650.0,86649.0,0.01529]
[1763665986615,0.02211988,86650.0,86629.0,0.1795062]
[1763665986616,0.02211988,86650.0,86630.0,0.7860004]
[1763665986904,0.02211988,86650.0,86630.0,0.88993674]
[1763665987313,0.02211988,86650.0,86649.0,0.001]
[1763665987513,0.04347109,86650.0,86649.0,0.001]
[1763665987736,0.04347109,86650.0,86649.0,0.01629]
[1763665987737,0.01811988,86650.0,86649.0,0.01629]
[1763665987931,0.01811988,86650.0,86649.0,0.03418]
[1763665987932,0.02211988,86650.0,86649.0,0.03418]
[1763665988309,0.02211988,86650.0,86649.0,0.01629]
[1763665988510,0.02211988,86650.0,86649.0,0.001]
[1763665988914,0.02211988,86650.0,86630.0,0.7860004]
[1763665989145,0.02211988,86650.0,86631.0,0.01789]
[1763665989337,0.02211988,86650.0,86641.0,0.11476708]
[1763665989518,0.02211988,86650.0,86631.0,0.01789]
[1763665989519,0.00025359,86635.0,86631.0,0.01789]
[1763665989722,0.00025359,86635.0,86627.0,0.01142]
[1763665989922,0.00025359,86635.0,86628.0,0.11476708]
[1763665990125,0.00025359,86635.0,86634.0,0.01529]
[1763665991347,0.00025359,86635.0,86634.0,0.04803137]
[1763665991585,0.00025359,86635.0,86634.0,0.03518]
[1763665992634,0.00025359,86635.0,86634.0,0.03418]
[1763665992837,0.00025359,86635.0,86634.0,0.03318]
[1763665993055,0.00025359,86635.0,86634.0,0.001]
[1763665993244,0.00025359,86635.0,86634.0,0.002]
[1763665995153,0.01837108,86635.0,86634.0,0.002]
[1763665995559,0.01837108,86635.0,86634.0,0.001]
[1763665995807,0.03434108,86635.0,86634.0,0.001]
[1763665996900,0.05572499,86635.0,86634.0,0.002]
[1763665997418,0.03977307,86635.0,86634.0,0.001]
[1763665997615,0.03977307,86635.0,86634.0,0.002]
[1763665997616,0.01837108,86635.0,86634.0,0.002]